Cogmind - Beta 16.1 @@@ ROGUE MODE // 2026.04.30 @ 01:14:14 Player: Ren Result: Self-destructed Performance ------------- Evolutions (2) 1000 Regions Visited (3) 600 Robots Destroyed (31) 155 Value Destroyed (411) 411 Prototype IDs (5) 100 Alien Tech Used (0) 0 Bonus (0) 0 TOTAL SCORE: 2266 Bonus ------- None Cogmind --------- Core Integrity 37/550 Matter 133/300 Energy 100/100 System Corruption 2% Temperature Cool (0) Movement Flying (35) Location -8/Materials Parts ------- > --- POWER (1) -------- (None) > --- PROPULSION (4) --- Improved VTOL Module > --- UTILITY (4) ------ Signal Interpreter Improved Light Armor Plating > --- WEAPON (2) ------- Scythe > --- INVENTORY (5) ---- Medium Armor Plating Hacking Suite Autogun Autogun Mining Claw Peak State ------------ > --- POWER ------------ (None) > --- PROPULSION ------- Cesium-ion Thruster Cesium-ion Thruster Improved VTOL Module > --- UTILITY ---------- Small Storage Unit Signal Interpreter Improved Light Armor Plating > --- WEAPON ----------- Scythe > --- INVENTORY -------- Advanced Visual Processing Unit Sensor Array Hacking Suite Autogun Autogun Improved Light Cannon Mining Claw [Rating: 19] Favorites ----------- Power Light Nuclear Core Engine Ion Engine Power Core Light Nuclear Core Propulsion Improved Hover Unit Wheel Wheel Hover Unit Improved Hover Unit Flight Unit Cesium-ion Thruster Utility Seismic Detector Device Seismic Detector Storage Small Storage Unit Processor Signal Interpreter Protection Medium Armor Plating Weapon Mining Claw Energy Gun EM Pulse Gun Ballistic Gun Autogun Launcher Grenade Launcher Slashing Weapon Mining Claw Build | -11 -10 -9 -8 ------- Run | Yrd Mat Mat Mat Slots Evolved 4 | . . 2 2 Power . | . . . . Propulsion 2 | . . 1 1 Utility 2 | . . 1 1 Weapon . | . . . . Parts Attached 37 | 9 10 8 10 Power 8 | 2 4 . 2 Engine 7 | 2 3 . 2 Core 1 | . 1 . . Reactor . | . . . . Propulsion 10 | 3 2 2 3 Treads . | . . . . Leg . | . . . . Wheel 3 | 3 . . . Hover 4 | . 2 2 . Flight 3 | . . . 3 Utility 10 | 2 1 3 4 Device 4 | 1 1 1 1 Storage 3 | 1 . 2 . Processor 1 | . . . 1 Hackware . | . . . . Protection 2 | . . . 2 Artifact . | . . . . Weapon 9 | 2 3 3 1 Energy Gun 1 | 1 . . . Energy Cannon . | . . . . Ballistic Gun 5 | 1 2 2 . Ballistic Cannon . | . . . . Launcher 1 | . . 1 . Special Weapon . | . . . . Impact Weapon . | . . . . Slashing Weapon 2 | . 1 . 1 Piercing Weapon . | . . . . Special Melee Weapon . | . . . . Unidentified Prototypes 2 | . 1 . 1 Parts Lost 12 | . 1 3 8 Power 4 | . 1 1 2 Propulsion 5 | . . 2 3 Utility 2 | . . . 2 Weapon 1 | . . . 1 Highest Loss Streak 5 | . 1 3 5 To Critical Strikes . | . . . . Average Backups 6 | . 6 8 7 Power . | . . . . Propulsion 1 | . 4 1 . Utility 2 | . 1 4 3 Weapon 2 | . . 3 3 Tool/Special . | . . . . Unused Backups 13 | . 6 2 5 Power . | . . . . Propulsion 7 | . 6 1 . Utility 4 | . . . 4 Weapon 2 | . . 1 1 Tool/Special . | . . . . Average Slot Usage (%) 79 | . 92 89 49 Engine 1 | . 5 . . Core 5 | . 6 9 . Wheel 5 | . 16 . . Hover 17 | . 10 31 4 Flight 3 | . . . 14 Device 13 | . 14 17 6 Storage 11 | . 14 11 8 Processor 1 | . . . 5 Energy Gun 2 | . 9 . . Ballistic Gun 7 | . 12 9 . Slashing Weapon 5 | . 1 9 5 Peak Build Rating 19 | 7 14 16 19 Average Rating 11 | 6 9 14 12 On Entrance 6 | . 7 11 9 Avg Prop Armor Cover (%) . | . . . . Naked Turns . | . . . . Heaviest Build 22 | 14 14 22 15 Greatest Support 26 | 26 20 24 16 Greatest Overweight (x) 4 | . 1 1 4 Average Overweight (x) . | . . . . Largest Inventory Capacity 10 | 8 8 10 10 Average Capacity 8 | 7 8 9 8 Most Carried 10 | 2 8 10 9 Average Carried 6 | . 6 8 7 Final Capacity 10 | 8 8 10 5 Final Carried 9 | 2 8 9 5 Class Distribution -------------------- 86% | Mutant 13% | Sprinter Dominant Class ---------------- Mutant | -10/Materials Mutant | -9/Materials Sprinter | -8/Materials Resources | -11 -10 -9 -8 ----------- Run | Yrd Mat Mat Mat Matter Collected 567 | 319 22 158 68 Remotely . | . . . . Salvage Created 928 | 244 272 277 135 Parts 63 | 16 16 14 17 Haulers Intercepted 6 | . 2 2 2 Recyclers Shooed 1 | . 1 . . Parts Field Recycled . | . . . . Retrieved Matter . | . . . . Parts Self-Destructed . | . . . . Prevented . | . . . . Parts Restored . | . . . . Kills | -11 -10 -9 -8 ------- Run | Yrd Mat Mat Mat Combat Hostiles Destroyed 13 | . 5 4 4 Melee 2 | . . 1 1 Guns 4 | . 4 . . AOE 6 | . . 3 3 Classes Destroyed 8 | 3 3 2 . Worker 4 | 1 . 1 2 Tunneler 7 | 5 1 . 1 Hauler 6 | . 2 2 2 Recycler 1 | 1 . . . Swarmer 7 | . 3 . 4 Grunt 4 | . 2 2 . Brawler 1 | . . 1 . Sentry 1 | . . 1 . Best Kill Streak 5 | 2 5 4 5 Combat Bots Only 5 | . 5 3 3 Max Kills in Single Turn 2 | 1 1 2 2 Gunslinging . | . . . . Exploded 2 | . . 2 1 Melee 1 | . . 1 1 Uniques/NPCs Destroyed . | . . . . Combat | -11 -10 -9 -8 -------- Run | Yrd Mat Mat Mat Hostile Shots Fired 189 | . 25 30 134 Missed 65 | . 6 10 49 Hits 124 | . 19 20 85 Melee 8 | . . . 8 Projectile 116 | . 19 20 77 AOE 1 | . . . 1 Critical Strikes 6 | . . 2 4 Damage Taken 1695 | 32 233 284 1146 Core 649 | . 70 66 513 Absorbed by Shields . | . . . . Core Remaining (%) 85 | 100 72 83 . Volleys Fired 59 | 29 22 4 4 Largest 2 | 2 2 1 1 Hottest 60 | 60 60 30 30 Shots Fired 108 | 58 42 4 4 Gun 100 | 58 42 . . Cannon . | . . . . Launcher 8 | . . 4 4 Special . | . . . . Kinetic 51 | 29 22 . . Thermal . | . . . . Explosive 8 | . . 4 4 Electromagnetic 49 | 29 20 . . Robot Hit Streak 8 | 5 8 3 . Robot Miss Streak 3 | 3 2 1 . Penetration Max . | . . . . Secondary Targets 1 | . 1 . . Max Gunslinging Chain 1 | . 1 . . Shots Hit Robots 85 | 34 31 9 11 Core Hits 47 | 11 12 12 12 Critical Kills . | . . . . Critical Parts Destroyed . | . . . . Critical Strikes 4 | 2 . . 2 Corrupt 2 | 2 . . . Sever 2 | . . . 2 Melee Attacks 46 | . 2 17 27 Impact . | . . . . Slashing 46 | . 2 17 27 Piercing . | . . . . Sneak Attacks 7 | . 1 2 4 Combat Hostiles . | . . . . Follow-up Attacks . | . . . . Damage Inflicted 1910 | 398 411 375 726 Guns 735 | 376 359 . . Cannons . | . . . . Explosions 499 | 22 . 232 245 Melee 676 | . 52 143 481 Ramming . | . . . . Kinetic 224 | 94 130 . . Thermal 22 | 22 . . . Explosive 477 | . . 232 245 Electromagnetic 511 | 282 229 . . Impact . | . . . . Slashing 676 | . 52 143 481 Piercing . | . . . . Highest Corruption 2 | . 1 . 2 Average Corruption 1 | . 1 . 2 Corruption Purged . | . . . . Corruption Blocked . | . . . . Effects 3 | . 3 . . Message Errors 1 | . 1 . . Matter Fused 1 | . 1 . . Energy Discharges 1 | . 1 . . Overload Shots . | . . . . Overflow Damage 42 | . 22 . 20 Projectiles . | . . . . Explosions . | . . . . Melee 42 | . 22 . 20 Knockbacks . | . . . . Impact . | . . . . Kinetic . | . . . . Secondary . | . . . . Self-Inflicted Damage 32 | 32 . . . Shots 1 | 1 . . . Rammed . | . . . . Targets Rammed . | . . . . Kicked . | . . . . Crushed . | . . . . Highest Temperature 144 | 52 144 10 8 Average Temperature 38 | 21 62 6 5 Received Heat Transfer 510 | . 93 138 279 Siege Activations . | . . . . Martial Activations . | . . . . Shielding Activations . | . . . . Robots Disrupted . | . . . . Combat Hostiles . | . . . . Robots Corrupted 1 | . 1 . . Combat Hostiles 1 | . 1 . . Parts Fried 4 | 4 . . . Impact Corruptions . | . . . . Robots Melted . | . . . . Combat Hostiles . | . . . . Parts Melted . | . . . . Heat Transferred . | . . . . Parts Sabotaged . | . . . . Parts Stolen . | . . . . Parts Stripped . | . . . . Power Chain Reactions 1 | 1 . . . Alert | -11 -10 -9 -8 ------- Run | Yrd Mat Mat Mat Maximum Alert Level 1 | . . . 1 Low Security (%) 92 | 100 100 100 64 Level 1 7 | . . . 35 Level 2 . | . . . . Level 3 . | . . . . Level 4 . | . . . . Level 5 . | . . . . High Security . | . . . . Max Security . | . . . . Peak Influence 346 | 10 120 173 346 Initial 72 | . 3 9 72 Average 82 | 1 57 69 180 Influence Increases 1190 | 35 193 472 490 Destroy 0b10 Robot/C 260 | . 100 80 80 Destroy 0b10 Robot/NC 90 | 35 15 15 25 Destroy Leader 62 | . 24 24 14 Successful Hack 37 | . 9 24 4 Disable Machine 60 | . 30 . 30 Destroy Structure 51 | . . 29 22 Partial Spotted 45 | . . . 45 Lose Combat Pursuer 585 | . 15 300 270 Influence Decreases 858 | 30 175 322 331 Entered New Map 117 | . 2 14 101 Time Decay 554 | 30 163 211 150 Lost Part 90 | . 10 . 80 Purge Threat 97 | . . 97 . Squads Dispatched 8 | . 4 . 4 Investigation 3 | . 3 . . Extermination . | . . . . Reinforcement 5 | . 1 . 4 Assault . | . . . . Garrison . | . . . . Intercept . | . . . . Searches Triggered . | . . . . Construction Impeded . | . . . . Haulers Reinforced . | . . . . Active Scanning Responses . | . . . . Cargo Convoy Interrupts . | . . . . Stealth | -11 -10 -9 -8 --------- Run | Yrd Mat Mat Mat Distress Signals 8 | . 1 4 3 Communications Jammed . | . . . . Distress Signals . | . . . . Times Spotted 75 | . 9 24 42 Peak Tracking Total 13 | . 6 10 13 Tactical Retreats 18 | . 1 8 9 Traps | -11 -10 -9 -8 ------- Run | Yrd Mat Mat Mat Traps Triggered 4 | . 3 . 1 Indirectly . | . . . . Trap Hack Attempts . | . . . . Triggered . | . . . . Disarmed . | . . . . Reprogrammed . | . . . . Reused . | . . . . Traps Extracted . | . . . . Installed . | . . . . Triggered . | . . . . Machines | -11 -10 -9 -8 ---------- Run | Yrd Mat Mat Mat Machines Disabled 4 | . 2 . 2 Max in Single Turn 1 | . 1 . 1 Machines Repaired . | . . . . Machines Dismantled . | . . . . Machines Sabotaged . | . . . . Overloaded Fab Kills . | . . . . Hacking | -11 -10 -9 -8 --------- Run | Yrd Mat Mat Mat Machines Accessed 14 | . 3 7 4 Terminals 11 | . 3 5 3 Fabricators . | . . . . Repair Stations . | . . . . Recycling Units 1 | . . 1 . Scanalyzers 1 | . . 1 . Garrison Access 1 | . . . 1 Total Hacks 55 | . 16 25 14 Successful 31 | . 9 15 7 Failed 23 | . 7 9 7 Catastrophic 1 | . . . 1 Database Lockouts 1 | . . 1 . Manual 23 | . 10 10 3 Terminals 50 | . 16 22 12 Fabricators . | . . . . Repair Stations . | . . . . Recycling Units 1 | . . 1 . Scanalyzers 2 | . . 2 . Garrison Access 2 | . . . 2 Terminal Hacks 21 | . 6 10 5 Prototype ID Bank 2 | . 2 . . Branch Access Points 1 | . 1 . . Emergency Access Points 2 | . . 2 . Unreport Threat 1 | . . 1 . Locate Traps 1 | . . 1 . Dispatch Records 1 | . . 1 . Recall Investigation 1 | . 1 . . Hauler Manifests 3 | . 1 1 1 Registered Components 2 | . . 1 1 Zone Layout 7 | . 1 3 3 Fabricator Hacks . | . . . . Repair Station Hacks . | . . . . Recycling Unit Hacks 1 | . . 1 . Report Inventory 1 | . . 1 . Scanalyzer 1 | . . 1 . Retrieve Study 1 | . . 1 . Garrison Access Hacks . | . . . . Unauthorized Hacks 8 | . 3 3 2 Terminals 8 | . 3 3 2 Botnet 8 | . 3 3 2 Fabricators . | . . . . Repair Stations . | . . . . Recycling Units . | . . . . Scanalyzers . | . . . . Garrison Access . | . . . . Data Cores Recovered . | . . . . Used . | . . . . Hacking Detections 11 | . 2 6 3 Full Trace Events . | . . . . Feedback Events . | . . . . Feedback Blocked . | . . . . Robot Schematics Acquired . | . . . . Robots Built . | . . . . Authchips . | . . . . Time . | . . . . Total Robot Build Rating . | . . . . Part Schematics Acquired . | . . . . Parts Built . | . . . . Authchips . | . . . . Time . | . . . . Total Part Build Rating . | . . . . Part Studies Acquired 1 | . . 1 . Parts Repaired . | . . . . Time . | . . . . Parts Recycled . | . . . . Recycled Matter . | . . . . Retrieved Matter . | . . . . Retrieved Components . | . . . . Parts Scanalyzed . | . . . . Part Schematics Acquired . | . . . . Parts Damaged . | . . . . Bothacking | -11 -10 -9 -8 ------------ Run | Yrd Mat Mat Mat Used RIF Installer . | . . . . Robots Hacked . | . . . . Non-combat . | . . . . Combat . | . . . . Robot Hacks Applied . | . . . . Relay Couplers Released . | . . . . Fabnet Peak Effective % . | . . . . Robots Rewired . | . . . . Allies Hacked . | . . . . Hacks Repelled . | . . . . Allies | -11 -10 -9 -8 -------- Run | Yrd Mat Mat Mat Total Allies . | . . . . Largest Group . | . . . . Highest-Rated Group . | . . . . Highest-Rated Ally . | . . . . Total Orders . | . . . . Ally Attacks . | . . . . Total Damage . | . . . . Kills . | . . . . Allies Corrupted . | . . . . Allies Melted . | . . . . Intel | -11 -10 -9 -8 ------- Run | Yrd Mat Mat Mat Active Infowar (turns) 1167 | 155 372 515 125 Sensors 36 | . . . 36 Structural 421 | . . 332 89 Seismic 1128 | 155 372 515 86 Robot Analysis Total . | . . . . Derelict Logs Recovered . | . . . . Drone Launches . | . . . . Drone Recoveries . | . . . . Exploration | -11 -10 -9 -8 ------------- Run | Yrd Mat Mat Mat Turns Passed 1392 | 188 372 515 317 Spaces Moved 1692 | 113 377 703 499 Core 8 | 2 . . 6 Treads . | . . . . Legs . | . . . . Wheels 297 | 111 186 . . Hover 987 | . 191 703 93 Flight 400 | . . . 400 Fastest Speed 29 | 50 56 52 29 Average Speed 53 | 81 68 52 38 Slowest Speed 250 | 100 120 116 250 Overloaded Moves . | . . . . Propulsion Burnouts . | . . . . Robots Hopped 1 | . . . 1 Potential Cave-ins . | . . . . Cave-ins Triggered . | . . . . Exploration Rate (%) 46 | 4 65 56 62 Regions Visited 3 Branch Regions . Pre-discovered Areas . | . . . . Known Exits Taken . | . . . . Unknown Exits Taken 3 | 1 1 1 . Scrap Searched . | . . . . Spaces Dug 11 | . . 4 7 Terrain Destroyed 53 | 2 . 32 19 Melee 11 | . . 4 7 Projectile . | . . . . AOE 42 | 2 . 28 12 Terrain Rammed . | . . . . Walls Destroyed . | . . . . Machines Disabled . | . . . . Actions | -11 -10 -9 -8 --------- Run | Yrd Mat Mat Mat Total 1997 | 152 458 809 578 Wait 93 | . 6 66 21 Move 1687 | 112 376 702 497 Hop 1 | . . . 1 Pick Up 28 | 1 18 4 5 Fast Attach 19 | 7 6 1 5 Attach 14 | . 1 5 8 Detach 10 | . 3 3 4 Swap 12 | 2 4 3 3 Drop 28 | 1 20 4 3 Fire 59 | 29 22 4 4 Melee 46 | . 2 17 27 Ram . | . . . . Kick . | . . . . Crush . | . . . . Escape Stasis . | . . . . Rewire . | . . . . Trap . | . . . . Miscellaneous . | . . . . Route ------- -11/Scrapyard -10/Materials (discovered 2 exits: *Mat / *Min) -9/Materials (discovered 3 exits: *Mat x2 / [*Min]) -8/Materials (discovered 2 exits: [*Fac] / [*Sto]) History --------- Turn | Location | Event 15 | -11/Scrapyard | Discovered new exit (range 16) 189 | -11/Scrapyard | Entered Materials 304 | -10/Materials | Build established: Mutant 352 | -10/Materials | Discovered new exit (range 9) 491 | -10/Materials | Identified exit to Mines 539 | -10/Materials | Discovered new exit (range 14) 561 | -10/Materials | Entered another Materials area 561 | -9/Materials | Evolved 2 slots: Propulsion x1, Utility x1 641 | -9/Materials | Discovered new exit (range 16) 707 | -9/Materials | Discovered new exit (range 8) 824 | -9/Materials | Central database locked down 1025 | -9/Materials | Lost 3 parts (1p2n) 1042 | -9/Materials | Discovered new exit (range 4) 1076 | -9/Materials | Entered another Materials area 1076 | -8/Materials | Evolved 2 slots: Propulsion x1, Utility x1 1193 | -8/Materials | Lost 5 parts (1p2n1u1w) 1227 | -8/Materials | Discovered new exit (range 16) 1274 | -8/Materials | Discovered new exit (range 9) 1288 | -8/Materials | Core integrity fell below 50% 1383 | -8/Materials | Core integrity fell below 20% 1393 | -8/Materials | Self-destructed Last Messages --------------- Sneak attack on A-02 Transporter. A-02 Transporter Lgt. Treads severed. Penetrated by Slug. A-02 Transporter destroyed. Sneak attack on A-02 Transporter. A-02 Transporter destroyed. Penetrated by Slug. Acquired 44 matter. W-25 Informer sends out distress signal. Acquired Med. Armor Plating. Slug penetrates Wall. Cesium-ion Thruster destroyed. U-05 Engineer builds a Door. W-25 Informer sends out distress signal. Critical hit (Burn: +37). O-24 Administrator: "IFF HANDSHAKE FAILED. SECURING TERMINAL." Cesium-ion Thruster severed. Dropped Sml. Storage Unit. Destroyed Reaction Control System. Map ----- +----------------------------------------------------+ | ???????????????????????????????????# ##!!! #???? | | ???????????????????????????????????# ##!!! #???? | | ???????????????????????????????????# ##!!! #???? | | ???????????????????????????????????# ## #???? | | ???????????????????????????????????# ##= #???? | | ???????????????????????????????????# ## #???? | | ???????????????????????????????????# #"! #???? | | ?????????????????????????[?????????# "######???? | | ???????????????????????????????????# ##????????? | | ???????????????????????????????????# #?????????? | | ???????????????????????????????????# #?????????? | | ???????????????????????????????????# #?????????? | | ???????????????????????????????????# ######?#### | | ???????????????????????????????????# #! ? [ # | | ???????????????????????????????????# # # | | #####??????????????????????????????# # """"""" # | | #??????????????????????????????# # """"""" # | | ?????????????????????????????????# # """"""" # | | ?????????????????????????????????# # """"""" # | | ""?????????????????????????????????# / """"""" # | | ""?????????????????????????????????# # # | | ""?????????????????????????????????# #########[# | | ?????????????????????????#######?# # /%= | | ?????????????????????????# ### # ##[# | | +#???????????????# ####### # # ?????### | | ???????? !c@c! ## #???????### | | #???????????????# ###### ## +???????# | | #????????????????????????# g ## #???????# | | #????????????????????????## ## #???????# | | ## ???????????????????????# ## ##??????# ! | | # ?????????????# ##########/### #??????# | | # ?????????????# #??????# [ | | + ?????????????# #??????# | | # ?????????????# #########/ | | ## ?????????????+ ##########+### | | ## ??????????????????????????????##"+######### | | ??????????????????????????????????# H #??# " | | ??????????????????????????????????# """ #??# | | ??????????????????????????????????# """ #### | | ??????????????????????????????????#] """ / | | ??????????????????????????????????# #### | | ??????????????????????????????????# """ #??# # | | ??????????????????????????????????# """ #### # | | ??????????????????????????????????# ! """ + # | | ??????????????????????????????????# #####"# | | ??????????????????????????????????##########???# # | | ????????????????????????????????????????????????## | | ?????????????????????????????????????????????????# | | ?????????????????????????????????????????????????# | | ?????????????????????????????????????????????????? | +----------------------------------------------------+ Best States ------------- Heat Dissipation 31 Energy Generation 14 Energy Capacity 250 Matter Stores 300 Matter Capacity 300 Sight Range 16 Robot Scan Range 14 Terrain Scan Density 10 Armor Coverage 225 Evasion (%) 64 Item Schematics ----------------- None Robot Schematics ------------------ None Fabricated ------------ Nothing Repaired ---------- Nothing Studied --------- Imp. Hover Unit | -9/Materials | Hacked Alien Tech Used ----------------- None Achievements -------------- Party Time Challenges ------------ None Game ------ Seed BombServoScrapsphere Manual? 0 Play Time 00:47:27 Cumulative 49.4 hours Start 2026.04.29 @ 18:32:56 End 2026.04.30 @ 01:14:14 Sessions 3 Manual Loads 0 Difficulty Rogue Special Mode None Game No. 36 Rogue 2 Adventurer 34 Explorer 0 Win Type - Total 0 Types 0/0/0/0/0/0/0/0/0/0 Lore% 30 Gallery% 25 Achievement% 24 Wizard Run 0 Options --------- Layout 1 ASCII 0 Keyboard 1 Movement Numpad Keybinds 0 Fullscreen 1 Font 24/Smallcaps Map View 50x40 Zoom Use 5% Tactical HUD 0 Map Filters NONE Filters NONE Steam 1 RUN: 51bed8a6-416b-4c0c-aa83-9cf4ea819e9e